fUSD/lending_fUSD_20250620
["ID","MTS","AMOUNT","RATE_DAILY","PERIOD"]
[366681124,1750409455042,-289.56077985,0.00025911,4]
[366681125,1750409455053,-490.0,0.00025911,4]
[366681126,1750409455064,-490.0,0.00025911,4]
[366681127,1750409455076,-490.0,0.00025911,4]
[366681128,1750409455088,-490.0,0.00025911,4]
[366681129,1750409455101,-490.0,0.00025911,4]
[366681130,1750409455112,-490.0,0.00025911,4]
[366681131,1750409455123,-490.0,0.00025911,4]
[366681132,1750409455134,-490.0,0.00025911,4]
[366681133,1750409455146,-490.0,0.00025911,4]
[366681134,1750409455157,-490.0,0.00025911,4]
[366681135,1750409455169,-617.8,0.00025911,4]
[366681136,1750409455180,-225.3139537,0.00025911,4]
[366681137,1750409455191,-490.0,0.00025911,4]
[366681138,1750409455202,-490.0,0.00025911,4]
[366681139,1750409455212,-490.0,0.00025911,4]
[366681140,1750409455225,-490.0,0.00025911,4]
[366681141,1750409455236,-490.0,0.00025911,4]
[366681142,1750409455246,-606.01,0.00025911,4]
[366681143,1750409455257,-490.0,0.00025911,4]
[366681144,1750409455268,-490.0,0.00025911,4]
[366681145,1750409455279,-183.67020745,0.00025911,4]
[366681146,1750409455289,-390.67,0.00025911,4]
[366681147,1750409455300,-669.24,0.00025911,4]
[366681148,1750409455310,-539.68,0.00025911,4]
[366681149,1750409455320,-796.29,0.00025911,4]
[366681150,1750409455331,-490.0,0.00025911,4]
[366681151,1750409455342,-490.0,0.00025911,4]
[366681152,1750409455353,-684.98,0.00025911,4]
[366681153,1750409455364,-716.08,0.00025911,4]
[366681154,1750409455374,-490.0,0.00025911,4]
[366681155,1750409455384,-490.0,0.00025911,4]
[366681156,1750409455395,-490.0,0.00025911,4]
[366681157,1750409455405,-490.0,0.00025911,4]
[366681158,1750409455423,-490.0,0.00025911,4]
[366681159,1750409455434,-490.0,0.00025911,4]
[366681160,1750409455446,-490.0,0.00025911,4]
[366681161,1750409455457,-490.0,0.00025911,4]
[366681162,1750409455468,-490.0,0.00025911,4]
[366681163,1750409455479,-490.0,0.00025911,4]
[366681164,1750409455490,-490.0,0.00025911,4]
[366681165,1750409455502,-515.81,0.00025911,4]
[366681166,1750409455513,-490.0,0.00025911,4]
[366681167,1750409455525,-490.0,0.00025911,4]
[366681168,1750409455537,-490.0,0.00025911,4]
[366681169,1750409455548,-490.0,0.00025911,4]
[366681170,1750409455559,-490.0,0.00025911,4]
[366681171,1750409455571,-490.0,0.00025911,4]
[366681172,1750409455582,-490.0,0.00025911,4]
[366681173,1750409455597,-490.0,0.00025911,4]
[366681174,1750409455608,-997.69,0.00025911,4]
[366681175,1750409455619,-496.67,0.00025911,4]
[366681176,1750409455630,-939.26,0.00025911,4]
[366681177,1750409455641,-490.0,0.00025911,4]
[366681178,1750409455652,-419.20853534,0.00025911,4]
[366681179,1750409455664,-490.0,0.00025911,4]
[366681180,1750409455675,-490.0,0.00025911,4]
[366681181,1750409455687,-490.0,0.00025911,4]
[366681182,1750409455698,-490.0,0.00025911,4]
[366681183,1750409455710,-573.59,0.00025911,4]
[366681184,1750409455720,-490.0,0.00025911,4]
[366681185,1750409455734,-490.0,0.00025911,4]
[366681186,1750409455745,-500.0,0.00025911,4]
[366681187,1750409455756,-490.0,0.00025911,4]
[366681188,1750409455767,-630.01,0.00025911,4]
[366681189,1750409455778,-490.0,0.00025911,4]
[366681190,1750409455788,-490.0,0.00025911,4]
[366681191,1750409455799,-840.68,0.00025911,4]
[366681192,1750409455810,-490.0,0.00025911,4]
[366681193,1750409455821,-490.0,0.00025911,4]
[366681194,1750409455832,-490.0,0.00025911,4]
[366681195,1750409455847,-490.0,0.00025911,4]
[366681196,1750409455859,-490.0,0.00025911,4]
[366681197,1750409455870,-490.0,0.00025911,4]
[366681198,1750409455881,-774.81,0.00025911,4]
[366681199,1750409455893,-490.0,0.00025911,4]
[366681200,1750409455904,-490.0,0.00025911,4]
[366681201,1750409455915,-490.0,0.00025911,4]
[366681202,1750409455926,-719.64,0.00025911,4]
[366681203,1750409455936,-512.91,0.00025911,4]
[366681204,1750409455947,-490.0,0.00025911,4]
[366681205,1750409455958,-490.0,0.00025911,4]
[366681206,1750409455969,-490.0,0.00025911,4]
[366681207,1750409455981,-490.0,0.00025911,4]
[366681208,1750409455992,-490.0,0.00025911,4]
[366681209,1750409456004,-772.64,0.00025911,4]
[366681210,1750409456015,-490.0,0.00025911,4]
[366681211,1750409456027,-490.0,0.00025911,4]
[366681212,1750409456039,-2189.13,0.00025911,4]
[366681213,1750409456049,-490.0,0.00025911,4]
[366681214,1750409456060,-490.0,0.00025911,4]
[366681215,1750409456071,-740.67,0.00025911,4]
[366681216,1750409456083,-490.0,0.00025911,4]
[366681217,1750409456094,-490.0,0.00025911,4]
[366681218,1750409456105,-490.0,0.00025911,4]
[366681219,1750409456117,-534.03,0.00025911,4]
[366681220,1750409456131,-502.96,0.00025911,4]
[366681221,1750409456143,-490.0,0.00025911,4]
[366681222,1750409456155,-490.0,0.00025911,4]
[366681223,1750409456166,-490.0,0.00025911,4]
[366681224,1750409456177,-490.0,0.00025911,4]
[366681225,1750409456188,-1235.24,0.00025911,4]
[366681226,1750409456198,-829.99,0.00025911,4]
[366681227,1750409456210,-490.0,0.00025911,4]
[366681228,1750409456222,-490.0,0.00025911,4]
[366681229,1750409456236,-490.0,0.00025911,4]
[366681230,1750409456247,-504.99,0.00025911,4]
[366681231,1750409456258,-490.0,0.00025911,4]
[366681232,1750409456274,-490.0,0.00025911,4]
[366681233,1750409456284,-490.0,0.00025911,4]
[366681234,1750409456295,-1008.87,0.00025911,4]
[366681235,1750409456306,-490.0,0.00025911,4]
[366681236,1750409456318,-490.0,0.00025911,4]
[366681237,1750409456329,-490.0,0.00025911,4]
[366681238,1750409456339,-661.45,0.00025911,4]
[366681239,1750409456350,-490.0,0.00025911,4]
[366681240,1750409456362,-653.8,0.00025911,4]
[366681241,1750409456372,-490.0,0.00025911,4]
[366681242,1750409456384,-490.0,0.00025911,4]
[366681243,1750409456395,-490.0,0.00025911,4]
[366681244,1750409456406,-490.0,0.00025911,4]
[366681245,1750409456418,-490.0,0.00025911,4]
[366681246,1750409456429,-490.0,0.00025911,4]
[366681247,1750409456440,-490.0,0.00025911,4]
[366681248,1750409456451,-490.0,0.00025911,4]
[366681249,1750409456462,-490.0,0.00025911,4]
[366681250,1750409456475,-3074.66,0.00025911,4]
[366681251,1750409456486,-490.0,0.00025911,4]
[366681252,1750409456498,-490.0,0.00025911,4]
[366681253,1750409456509,-3707.1,0.00025911,4]
[366681254,1750409456520,-490.0,0.00025911,4]
[366681255,1750409456532,-490.0,0.00025911,4]
[366681256,1750409456543,-490.0,0.00025911,4]
[366681257,1750409456555,-2339.39,0.00025911,4]
[366681258,1750409456566,-490.0,0.00025911,4]
[366681259,1750409456578,-490.0,0.00025911,4]
[366681260,1750409456591,-490.0,0.00025911,4]
[366681261,1750409456603,-490.0,0.00025911,4]
[366681262,1750409456613,-490.0,0.00025911,4]
[366681263,1750409456623,-490.0,0.00025911,4]
[366681264,1750409456635,-490.0,0.00025911,4]
[366681265,1750409456647,-490.0,0.00025911,4]
[366681266,1750409456657,-490.0,0.00025911,4]
[366681267,1750409456671,-490.0,0.00025911,4]
[366681268,1750409456683,-648.93,0.00025911,4]
[366681269,1750409456694,-523.17,0.00025911,4]
[366681270,1750409456716,-4823.64,0.00025911,4]
[366681271,1750409456731,-490.0,0.00025911,4]
[366681272,1750409456741,-982.16,0.00025911,4]
[366681273,1750409456753,-511.03,0.00025911,4]
[366681274,1750409456764,-490.0,0.00025911,4]
[366681275,1750409456775,-687.26,0.00025911,4]
[366681276,1750409456786,-490.0,0.00025911,2]
[366681277,1750409456797,-490.0,0.00025911,4]
[366681278,1750409456808,-705.02,0.00025911,4]
[366681279,1750409456819,-2362.730361,0.00025911,4]
[366681280,1750409456829,-520.92,0.00025911,4]
[366681281,1750409456840,-1322.1,0.00025911,4]
[366681282,1750409456850,-490.0,0.00025911,4]
[366681283,1750409456861,-490.0,0.00025911,4]
[366681284,1750409456871,-490.0,0.00025911,4]
[366681285,1750409456882,-490.0,0.00025911,4]
[366681286,1750409456894,-490.0,0.00025911,4]
[366681287,1750409456905,-490.0,0.00025911,4]
[366681288,1750409456916,-490.0,0.00025912,4]
[366681289,1750409456927,-490.0,0.00025912,4]
[366681290,1750409456938,-490.0,0.00025912,4]
[366681291,1750409456949,-694.82,0.00025912,4]
[366681292,1750409456960,-490.0,0.00025912,4]
[366681293,1750409456971,-490.0,0.00025912,4]
[366681294,1750409456984,-490.0,0.00025912,4]
[366681295,1750409456995,-490.0,0.00025912,4]
[366681296,1750409457006,-490.0,0.00025912,4]
[366681297,1750409457017,-490.36,0.00025912,4]
[366681298,1750409457028,-490.0,0.00025912,4]
[366681299,1750409457040,-731.81,0.00025912,4]
[366681300,1750409457052,-490.0,0.00025912,4]
[366681301,1750409457063,-490.0,0.00025912,4]
[366681302,1750409457074,-490.0,0.00025912,4]
[366681303,1750409457085,-714.6,0.00025912,4]
[366681304,1750409457095,-490.24,0.00025912,4]
[366681305,1750409457105,-640.39,0.00025912,4]
[366681306,1750409457116,-490.0,0.00025912,4]
[366681307,1750409457127,-490.0,0.00025912,4]
[366681308,1750409457144,-575.29,0.00025912,4]
[366681309,1750409457155,-490.0,0.00025912,4]
[366681310,1750409457166,-490.0,0.00025912,4]
[366681311,1750409457178,-490.0,0.00025912,4]
[366681312,1750409457189,-490.0,0.00025912,4]
[366681313,1750409457200,-490.0,0.00025912,4]
[366681314,1750409457211,-747.48,0.00025912,4]
[366681315,1750409457223,-490.0,0.00025912,4]
[366681316,1750409457234,-490.0,0.00025912,4]
[366681317,1750409457245,-623.17445091,0.00025912,4]
[366681318,1750409457257,-490.0,0.00025912,4]
[366681319,1750409457267,-490.0,0.00025912,4]
[366681320,1750409457278,-490.0,0.00025912,4]
[366681321,1750409457289,-490.0,0.00025912,4]
[366681322,1750409457299,-490.0,0.00025912,4]
[366681323,1750409457309,-490.0,0.00025912,4]
[366681324,1750409457321,-490.0,0.00025912,4]
[366681325,1750409457332,-539.54,0.00025912,4]
[366681326,1750409457343,-529.63,0.00025912,4]
[366681327,1750409457353,-625.48,0.00025912,4]
[366681328,1750409457364,-490.0,0.00025912,4]
[366681329,1750409457375,-490.0,0.00025912,4]
[366681330,1750409457385,-490.0,0.00025912,4]
[366681331,1750409457396,-608.94,0.00025912,4]
[366681332,1750409457406,-490.0,0.00025912,4]
[366681333,1750409457417,-490.0,0.00025912,4]
[366681334,1750409457664,-490.0,0.00025912,4]
[366681335,1750409457676,-786.82,0.00025912,4]
[366681336,1750409457687,-490.0,0.00025912,4]
[366681337,1750409457698,-490.0,0.00025912,4]
[366681338,1750409457707,-490.0,0.00025912,4]
[366681339,1750409457717,-602.5,0.00025912,4]
[366681340,1750409457729,-490.0,0.00025912,4]
[366681341,1750409457739,-490.0,0.00025912,4]
[366681342,1750409457748,-490.0,0.00025912,4]
[366681343,1750409457758,-539.01,0.00025912,4]
[366681344,1750409457774,-490.0,0.00025912,4]
[366681345,1750409457784,-490.0,0.00025912,4]
[366681346,1750409457794,-490.0,0.00025912,4]
[366681347,1750409457805,-490.0,0.00025912,4]
[366681348,1750409457815,-490.0,0.00025912,4]
[366681349,1750409457825,-490.0,0.00025912,4]
[366681350,1750409457835,-490.0,0.00025912,4]
[366681351,1750409457845,-490.0,0.00025912,4]
[366681352,1750409457854,-490.0,0.00025912,4]
[366681353,1750409457865,-490.0,0.00025912,4]
[366681354,1750409457874,-490.0,0.00025912,4]
[366681355,1750409457884,-490.0,0.00025912,4]
[366681356,1750409457894,-490.0,0.00025912,4]
[366681357,1750409457905,-490.0,0.00025912,4]
[366681358,1750409457914,-490.0,0.00025912,4]
[366681359,1750409457924,-490.0,0.00025912,4]
[366681360,1750409457934,-291.74542586,0.00025912,4]
[366681361,1750409457944,-490.0,0.00025912,4]
[366681362,1750409457954,-490.0,0.00025912,4]
[366681363,1750409457964,-490.0,0.00025912,4]
[366681364,1750409457977,-490.0,0.00025912,4]
[366681365,1750409457987,-490.0,0.00025912,4]
[366681366,1750409457997,-490.0,0.00025912,4]
[366681367,1750409458007,-1257.29,0.00025912,4]
[366681368,1750409458016,-490.0,0.00025912,4]
[366681369,1750409458028,-641.54,0.00025912,4]
[366681370,1750409458038,-1988.48,0.00025912,4]
[366681371,1750409458049,-490.0,0.00025912,4]
[366681372,1750409458059,-1400.23,0.00025912,4]
[366681373,1750409458069,-490.0,0.00025912,4]
[366681374,1750409458079,-1333.22,0.00025912,4]
[366681375,1750409458090,-490.0,0.00025912,4]
[366681376,1750409458100,-490.0,0.00025912,4]
[366681377,1750409458110,-1721.8,0.00025912,4]
[366681378,1750409458120,-559.11,0.00025912,4]
[366681379,1750409458131,-490.0,0.00025912,4]
[366681380,1750409458142,-490.0,0.00025912,4]
[366681381,1750409458152,-1416.01,0.00025912,4]
[366681382,1750409458161,-490.0,0.00025912,4]
[366681383,1750409458171,-490.0,0.00025912,4]
[366681384,1750409458181,-490.0,0.00025912,4]
[366681385,1750409458190,-490.0,0.00025912,4]
[366681386,1750409458200,-490.0,0.00025912,4]
[366681387,1750409458209,-490.0,0.00025912,4]
[366681388,1750409458219,-490.0,0.00025912,4]
[366681389,1750409458230,-490.0,0.00025912,4]
[366681390,1750409458240,-490.0,0.00025912,4]
[366681391,1750409458251,-490.0,0.00025912,4]
[366681392,1750409458261,-490.0,0.00025912,4]
[366681393,1750409458271,-490.0,0.00025912,4]
[366681394,1750409458281,-490.0,0.00025912,4]
[366681395,1750409458291,-490.0,0.00025912,4]
[366681396,1750409458301,-494.85,0.00025912,4]
[366681397,1750409458312,-490.0,0.00025912,4]
[366681398,1750409458321,-535.88,0.00025912,4]
[366681399,1750409458331,-490.0,0.00025912,4]
[366681400,1750409458341,-551.7,0.00025912,4]
[366681401,1750409458350,-500.0,0.00025916,4]
[366681402,1750409458360,-202.25397889,0.00025916,4]
[366681403,1750409458370,-500.0,0.00025916,4]
[366681404,1750409458380,-500.0,0.00025916,4]
[366681405,1750409458390,-500.0,0.00025916,4]
[366681406,1750409458399,-500.0,0.00025916,4]
[366681407,1750409458409,-500.0,0.00025916,4]
[366681408,1750409458419,-1045.95999495,0.00025919,2]
[366681409,1750409458429,-150.0,0.00025919,2]
[366681410,1750409458438,-201.0,0.00025922,6]
[366681411,1750409458448,-185.92771378,0.00025931,2]
[366681412,1750409458458,-500.0,0.00025931,4]
[366681413,1750409458469,-3091.0,0.00025931,4]
[366681414,1750409458479,-500.0,0.00025931,4]
[366681415,1750409458489,-1207.86418072,0.00025934,14]
[366681416,1750409458499,-532.58,0.0002594,4]
[366681417,1750409458509,-490.0,0.0002594,4]
[366681418,1750409458518,-490.0,0.0002594,4]
[366681419,1750409458528,-490.0,0.0002594,4]
[366681420,1750409458538,-824.54,0.0002594,4]
[366681421,1750409458547,-645.96,0.0002594,4]
[366681422,1750409458557,-1271.71,0.0002594,4]
[366681423,1750409458568,-804.8,0.0002594,4]
[366681424,1750409458577,-6269.11,0.0002594,4]
[366681425,1750409458588,-921.39,0.0002594,4]
[366681426,1750409458600,-961.23,0.0002594,4]
[366681427,1750409458609,-1372.22,0.0002594,4]
[366681428,1750409458619,-1109.81,0.0002594,4]
[366681429,1750409458629,-490.0,0.0002594,4]
[366681430,1750409458639,-2964.213487,0.0002594,4]
[366681431,1750409458649,-1233.07,0.0002594,4]
[366681432,1750409458659,-490.0,0.0002594,4]
[366681433,1750409458671,-1041.78,0.0002594,4]
[366681434,1750409458682,-535.4,0.0002594,4]
[366681435,1750409458692,-490.0,0.0002594,4]
[366681436,1750409458701,-490.0,0.0002594,4]
[366681437,1750409458711,-5738.01,0.0002594,4]
[366681438,1750409458721,-1067.83,0.0002594,4]
[366681439,1750409458733,-490.0,0.0002594,4]
[366681440,1750409458743,-4283.76,0.0002594,4]
[366681441,1750409458752,-2019.43,0.0002594,4]
[366681442,1750409458763,-1683.71,0.0002594,4]
[366681443,1750409458772,-490.0,0.0002594,4]
[366681444,1750409458782,-2936.21,0.0002594,4]
[366681445,1750409458792,-490.0,0.0002594,4]
[366681446,1750409458801,-2133.44,0.0002594,4]
[366681447,1750409458811,-490.0,0.0002594,4]
[366681448,1750409458821,-572.55,0.0002594,4]
[366681449,1750409458831,-2608.83,0.0002594,4]
[366681450,1750409458841,-885.49,0.0002594,4]
[366681451,1750409458851,-778.6,0.0002594,4]
[366681452,1750409458861,-2445.88,0.0002594,4]
[366681453,1750409458870,-1310.21,0.0002594,4]
[366681454,1750409458880,-1717.5,0.0002594,4]
[366681455,1750409458890,-490.0,0.0002594,4]
[366681456,1750409458900,-869.68,0.0002594,4]
[366681457,1750409458909,-3206.78,0.0002594,4]
[366681458,1750409458919,-888.52,0.0002594,4]
[366681459,1750409458928,-490.0,0.0002594,4]
[366681460,1750409458938,-881.35,0.0002594,4]
[366681461,1750409458947,-490.0,0.0002594,4]
[366681462,1750409458957,-661.93,0.0002594,4]
[366681463,1750409458967,-2699.01,0.0002594,4]
[366681464,1750409458978,-294.48100618,0.0002594,2]
[366681465,1750409458987,-164.26303964,0.00025941,2]
[366681466,1750409458999,-500.0,0.00025941,4]
[366681467,1750409459011,-490.0,0.00025941,4]
[366681468,1750409459025,-490.0,0.00025941,4]
[366681469,1750409459034,-1417.03,0.00025941,4]
[366681470,1750409459045,-490.0,0.00025941,4]
[366681471,1750409459055,-490.0,0.00025941,4]
[366681472,1750409459065,-490.0,0.00025941,4]
[366681473,1750409459075,-490.0,0.00025941,4]
[366681474,1750409459085,-539.21,0.00025941,4]
[366681475,1750409459096,-490.0,0.00025941,4]
[366681476,1750409459105,-511.08,0.00025941,4]
[366681477,1750409459116,-1267.01,0.00025941,4]
[366681478,1750409459126,-811.25,0.00025941,4]
[366681479,1750409459135,-490.0,0.00025941,4]
[366681480,1750409459145,-878.29,0.00025941,4]
[366681481,1750409459156,-490.0,0.00025941,4]
[366681482,1750409459166,-1777.65,0.00025941,4]
[366681483,1750409459176,-490.57,0.00025941,4]
[366681484,1750409459185,-787.54,0.00025941,4]
[366681485,1750409459194,-490.0,0.00025941,4]
[366681486,1750409459204,-490.0,0.00025941,4]
[366681487,1750409459213,-676.45,0.00025941,4]
[366681488,1750409459224,-490.0,0.00025941,4]
[366681489,1750409459233,-494.71,0.00025941,4]
[366681490,1750409459242,-489.62015759,0.00025941,4]
[366681491,1750409459252,-490.0,0.00025941,4]
[366681492,1750409459262,-876.27,0.00025941,4]
[366681493,1750409459271,-527.07,0.00025941,4]
[366681494,1750409459281,-895.16,0.00025941,4]
[366681495,1750409459290,-490.0,0.00025941,4]
[366681496,1750409459299,-660.42,0.00025941,4]
[366681497,1750409459309,-490.0,0.00025941,4]
[366681498,1750409459320,-2124.28,0.00025941,4]
[366681499,1750409459329,-490.0,0.00025941,4]
[366681500,1750409459339,-534.75,0.00025941,4]
[366681501,1750409459348,-724.1,0.00025941,4]
[366681502,1750409459358,-490.0,0.00025941,4]
[366681503,1750409459367,-553.41,0.00025941,4]
[366681504,1750409459378,-490.0,0.00025941,4]
[366681505,1750409459387,-503.17,0.00025941,4]
[366681506,1750409459397,-1203.91,0.00025941,4]
[366681507,1750409459407,-711.42,0.00025941,4]
[366681508,1750409459417,-509.26,0.00025941,4]
[366681509,1750409459427,-490.0,0.00025941,4]
[366681510,1750409459437,-1315.18,0.00025941,4]
[366681511,1750409459447,-456.22311114,0.00025941,4]
[366681512,1750409459457,-490.0,0.00025941,4]
[366681513,1750409459467,-490.0,0.00025941,4]
[366681514,1750409459478,-490.0,0.00025941,4]
[366681515,1750409459488,-440.17215021,0.00025941,4]
[366681516,1750409459499,-630.67,0.00025941,4]
[366681517,1750409459509,-490.0,0.00025941,4]
[366681518,1750409459518,-490.0,0.00025941,4]
[366681519,1750409459528,-490.0,0.00025941,4]
[366681520,1750409459540,-2115.61,0.00025941,4]
[366681521,1750409459550,-1595.45,0.00025941,4]
[366681522,1750409459560,-154.89464547,0.00025941,4]
[366681523,1750409459572,-490.0,0.00025941,4]
[366681524,1750409459583,-674.57,0.00025941,4]
[366681525,1750409459594,-2091.2,0.00025941,4]
[366681526,1750409459604,-490.0,0.00025941,4]
[366681527,1750409459613,-490.0,0.00025941,4]
[366681528,1750409459624,-648.21,0.00025941,4]
[366681529,1750409459634,-490.0,0.00025941,4]
[366681530,1750409459644,-566.37,0.00025941,4]
[366681531,1750409459654,-490.0,0.00025941,4]
[366681532,1750409459664,-1638.42,0.00025941,4]
[366681533,1750409459674,-490.0,0.00025941,4]
[366681534,1750409459685,-553.67,0.00025941,4]
[366681535,1750409459696,-1919.4,0.00025941,4]
[366681536,1750409459706,-745.25,0.00025941,4]
[366681537,1750409459715,-601.32,0.00025941,4]
[366681538,1750409459726,-652.64,0.00025941,4]
[366681539,1750409459736,-490.0,0.00025941,4]
[366681540,1750409459746,-680.54,0.00025941,4]
[366681541,1750409459755,-490.0,0.00025941,4]
[366681542,1750409459765,-785.72,0.00025941,4]
[366681543,1750409459775,-1119.03,0.00025941,4]
[366681544,1750409459785,-910.27,0.00025941,4]
[366681545,1750409459795,-1089217.82645124,0.00025943,5]
[366681546,1750409460533,-505.02,0.00025943,5]
[366681547,1750409460548,-302.39,0.00025943,5]
[366681548,1750409460570,-490.0,0.00025637,4]
[366681549,1750409460580,-18880.57371221,0.00025943,5]
[366681550,1750409460594,-45771.66424779,0.00025943,5]
[366681551,1750409460607,-7230.14636129,0.00025943,5]
[366681552,1750409461829,202.00002,0.00022959,2]
[366681553,1750409462218,-490.0,0.00025637,4]
[366681554,1750409462231,-490.0,0.00025637,2]
[366681555,1750409462241,-680.99,0.00025637,4]
[366681556,1750409462252,-490.0,0.00025637,4]
[366681557,1750409462263,-490.0,0.00025637,4]
[366681558,1750409462274,-490.0,0.00025637,4]
[366681559,1750409462284,-490.0,0.00025637,4]
[366681560,1750409462295,-490.0,0.00025638,4]
[366681561,1750409462305,-490.0,0.00025678,4]
[366681562,1750409462316,-490.0,0.00025678,4]
[366681563,1750409462327,-490.0,0.00025777,4]
[366681564,1750409462337,-490.0,0.00025911,4]
[366681565,1750409462348,-490.0,0.00025911,4]
[366681566,1750409462358,-490.0,0.00025911,4]
[366681567,1750409462369,-490.0,0.00025911,2]
[366681568,1750409462380,-680.99,0.00025911,4]
[366681569,1750409462390,-490.0,0.00025911,4]
[366681570,1750409462401,-490.0,0.00025912,4]
[366681571,1750409462412,-490.0,0.00025941,4]
[366681572,1750409462422,-10308.02,0.00025943,5]
[366681573,1750409462434,-653.14153045,0.00025943,5]
[366681574,1750409462451,-17439.19300254,0.00025943,5]
[366681575,1750409462464,-4409.42602312,0.00025943,5]
[366681576,1750409462478,-3899.6,0.00025943,5]
[366681577,1750409462491,-1850.7145572,0.00025943,5]
[366681578,1750409462631,-556.98,0.00025911,4]
[366681579,1750409462642,-232.55037458,0.00025943,5]
[366681580,1750409462655,-12817.6468411,0.00025943,5]
[366681581,1750409462669,-1372.68791042,0.00025943,5]
[366681582,1750409463058,-556.3898016,0.00025943,5]
[366681583,1750409463072,-5376.445856,0.00025943,5]
[366681584,1750409463085,-727.93842349,0.00025943,5]
[366681585,1750409463098,-300.42878841,0.00025943,5]
[366681586,1750409463164,-1284.04,0.00025943,5]
[366681587,1750409463177,-481.42452263,0.00025943,5]
[366681588,1750409463189,-587.48795612,0.00025943,5]
[366681589,1750409463235,-20734.29953187,0.00025943,5]
[366681590,1750409464011,-490.0,0.00025637,4]
[366681591,1750409464022,-490.0,0.00025637,4]
[366681592,1750409464032,-278.5669058,0.00025666,4]
[366681593,1750409464044,-211.4330942,0.00025666,4]
[366681594,1750409464054,-490.0,0.00025678,4]
[366681595,1750409464065,-569.44,0.00025678,4]
[366681596,1750409464075,-490.0,0.0002594,4]
[366681597,1750409464085,-89379.70121895,0.00025943,5]
[366681598,1750409464097,-16212.41634949,0.00025943,5]
[366681599,1750409464110,-27054.55873187,0.00025943,5]
[366681600,1750409464123,-2375.7017612,0.00025943,5]
[366681601,1750409464159,-3477.18433901,0.00025943,5]
[366681602,1750409464242,-619.76020313,0.00025943,5]
[366681603,1750409464256,-196024.23393088,0.00025943,5]
[366681604,1750409464293,-490.0,0.00025911,4]
[366681605,1750409464304,-65847.77555029,0.00025943,5]
[366681606,1750409464317,-9988.64946018,0.00025943,5]
[366681607,1750409474444,209.0,0.00022959,2]
[366681608,1750409482752,5564.0,0.000219,5]
[366681681,1750409579365,5000.0,0.00022,2]
[366681699,1750409766374,151.0,0.00023077,2]
[366681700,1750409783071,151.0,0.00022754,2]
[366681701,1750409799845,151.0,0.00022437,2]
[366681702,1750409816268,151.0,0.00022432,2]
[366681712,1750409958909,154.48,0.00013699,2]
[366681721,1750410006025,1784.0,0.000231,2]
[366681737,1750410055136,152.46598684,0.000231,2]
[366681745,1750410128679,10000.0,0.000231,7]
[366681757,1750410355617,10000.0,0.000231,2]
[366681760,1750410411397,719.0,0.00025,120]
[366681762,1750410413831,212.0,0.00025,120]
[366681767,1750410483205,1028.0,0.00025,120]
[366681771,1750410541827,777.0,0.00025,120]
[366681782,1750410631863,-1799.18494443,0.00023878,2]